bitfinex/quotes_SOLUSD_20241022
["timestamp","ask_amount","ask_price","bid_price","bid_amount"]
[1729608220288,23.776884,169.13,169.1,0.1]
[1729608220491,23.776884,169.08,169.05,0.1]
[1729608220700,23.776884,169.08,168.96,6.2087]
[1729608220701,5.9154,169.05,169.04,0.1]
[1729608220874,29.692584,169.04,169.03,0.1]
[1729608221592,2.11902437,169.14,169.06,0.1]
[1729608221791,49.691184,169.08,169.07,0.1]
[1729608221979,23.776884,169.08,169.07,0.1]
[1729608222181,20.0,169.14,169.07,0.1]
[1729608222496,23.776884,169.11,169.08,0.1]
[1729608222692,23.776884,169.09,169.08,0.1]
[1729608223286,29.690884,169.09,169.08,0.1]
[1729608224591,2.01730488,169.18,169.15,0.1]
[1729608224894,5.9113,169.17,169.15,0.1]
[1729608225396,5.9108,169.18,169.16,0.1]
[1729608225770,5.9115,169.16,169.15,0.1]
[1729608226001,29.688384,169.16,169.15,0.1]
[1729608227466,5.9112,169.17,169.16,0.1]
[1729608227672,5.9112,169.17,169.15,0.1]
[1729608227987,5.9112,169.17,169.08,6.1188]
[1729608227988,5.9095,169.22,169.2,0.1]
[1729608228400,14.7718,169.25,169.2,0.1]
[1729608228975,14.7719,169.24,169.18,0.1]
[1729608229297,29.687384,169.19,169.18,0.1]
[1729608229598,23.776884,169.19,169.18,0.1]
[1729608230088,5.9097,169.22,169.21,0.1]
[1729608231396,29.686584,169.22,169.21,0.1]
[1729608232471,29.686584,169.22,169.18,0.1]
[1729608232472,23.776884,169.22,169.18,0.1]
[1729608232678,17.75,169.27,169.19,0.1]
[1729608232679,29.686984,169.2,169.19,0.1]
[1729608233490,23.776884,169.19,169.18,0.1]
[1729608233799,29.687384,169.19,169.18,0.1]
[1729608234097,29.687684,169.18,169.17,0.1]
[1729608234482,43.776884,169.21,169.2,0.1]
[1729608234781,23.776884,169.2,169.17,0.1]
[1729608234983,29.687684,169.18,169.17,0.1]
[1729608236287,20.0,169.24,169.17,0.1]
[1729608236493,20.0,169.24,169.2,0.1]
[1729608236713,25.9098,169.21,169.2,0.1]
[1729608238798,0.1,169.27,169.22,0.1]
[1729608238799,5.9094,169.23,169.22,0.1]
[1729608239023,25.9094,169.23,169.22,0.1]
[1729608239182,5.9094,169.23,169.22,0.1]
[1729608240503,5.9087,169.24,169.23,0.1]
[1729608240689,5.9083,169.26,169.25,0.1]
[1729608240896,5.9083,169.26,169.16,0.1]
[1729608240897,14.7658,169.31,169.28,0.1]
[1729608241617,5.9072,169.29,169.28,0.1]
[1729608241906,5.908,169.26,169.24,0.1]
[1729608242104,5.9084,169.25,169.24,0.1]
[1729608244003,17.85,169.27,169.18,0.1]
[1729608244186,17.85,169.25,169.18,0.1]
[1729608244387,17.85,169.25,169.19,0.1]
[1729608244722,5.9108,169.18,169.17,0.1]
[1729608245407,5.9112,169.17,169.16,0.1]
[1729608245614,17.75,169.19,169.12,0.1]
[1729608245909,21.1788,169.22,169.03,12.60755749]
[1729608245910,21.1788,169.22,169.18,0.1]
[1729608246083,5.9105,169.19,169.18,0.1]
[1729608247087,21.1788,169.22,169.16,0.1]
[1729608247293,5.9112,169.17,169.16,0.1]
[1729608253494,5.9112,169.17,169.09,0.2]
[1729608253495,17.75,169.2,169.15,0.1]
[1729608253694,5.9126,169.13,169.12,0.1]
[1729608254100,14.778,169.17,169.12,0.1]
[1729608254406,20.6892,169.17,169.16,0.1]
[1729608254605,14.778,169.17,169.14,0.1]
[1729608254799,5.9119,169.15,169.14,0.1]
[1729608257721,5.9122,169.14,169.13,0.1]
[1729608258313,5.9126,169.13,169.12,0.1]
[1729608262111,17.75,169.11,169.08,0.1]
[1729608262303,17.75,169.11,169.07,0.1]
[1729608262498,5.914,169.09,169.08,0.1]
[1729608263104,14.7841,169.1,169.07,0.1]
[1729608263304,5.9143,169.08,169.07,0.1]
[1729608263921,5.9129,169.12,169.11,0.1]
[1729608265713,5.9105,169.19,169.18,0.1]
[1729608266027,5.9108,169.18,169.17,0.1]
[1729608268938,17.75,169.2,169.16,0.1]
[1729608269227,5.9112,169.17,169.16,0.1]
[1729608269425,17.75,169.2,169.15,0.1]
[1729608269426,14.7762,169.19,169.15,0.1]
[1729608269622,5.9115,169.16,169.15,0.1]
[1729608270609,5.9119,169.15,169.14,0.1]
[1729608270817,17.75,169.19,169.14,0.1]
[1729608271122,5.9115,169.16,169.15,0.1]
[1729608272110,14.778,169.17,169.14,0.1]
[1729608272315,5.9119,169.15,169.14,0.1]
[1729608272711,5.9122,169.14,169.13,0.1]
[1729608277230,5.9122,169.14,169.08,6.1292]
[1729608277231,5.9117,169.16,169.15,0.1]
[1729608278635,5.9119,169.15,169.14,0.1]
[1729608286039,20.6867,169.19,169.18,0.1]
[1729608286236,5.9108,169.18,169.17,0.1]
[1729608289418,32.5262,169.19,169.15,0.1]
[1729608289638,5.9115,169.16,169.15,0.1]
[1729608290042,5.9119,169.15,169.14,0.1]
[1729608291422,6.0547,169.22,169.12,0.1]
[1729608291423,17.75,169.16,169.12,0.1]
[1729608291619,17.75,169.16,169.11,0.1]
[1729608291822,5.914,169.09,169.08,0.1]
[1729608292547,5.9143,169.08,169.07,0.1]
[1729608295144,17.75,169.12,169.07,0.1]
[1729608295345,17.75,169.11,169.06,0.1]
[1729608295544,5.9147,169.07,169.06,0.1]
[1729608296843,5.915,169.06,169.05,0.1]
[1729608300330,17.75,169.09,169.04,0.1]
[1729608300646,36.1742,169.13,169.04,0.1]
[1729608300647,5.9154,169.05,169.04,0.1]
[1729608301146,17.75,169.11,169.04,0.1]
[1729608301326,5.915,169.07,169.06,0.1]
[1729608303335,5.915,169.06,169.05,0.1]
[1729608310947,5.914,169.09,169.08,0.1]
[1729608313170,5.9126,169.13,169.12,0.1]
[1729608314281,32.5306,169.14,169.1,0.1]
[1729608314571,5.9133,169.11,169.1,0.1]
[1729608319957,5.9115,169.16,169.15,0.1]
[1729608320163,5.9101,169.2,169.19,0.1]
[1729608320360,14.72366142,169.26,169.25,0.1]
[1729608320573,14.27866142,169.26,169.25,0.1]
[1729608321177,17.75,169.25,169.2,0.1]
[1729608321479,5.9105,169.19,169.18,0.1]
[1729608324884,5.9102,169.2,169.19,0.1]
[1729608325388,5.9098,169.21,169.19,0.1]
[1729608325884,5.9098,169.21,169.2,0.1]
[1729608331862,8.37066142,169.26,169.16,0.1]
[1729608331863,5.908,169.26,169.25,0.1]
[1729608334285,17.75,169.26,169.22,0.1]
[1729608334664,5.9091,169.23,169.22,0.1]
[1729608335676,20.93855369,169.3,169.27,0.1]
[1729608335893,14.767,169.3,169.28,0.1]
[1729608336466,20.6736,169.3,169.29,0.1]
[1729608336805,5.9066,169.3,169.29,0.1]
[1729608337884,6.5344642,169.35,169.34,0.1]
[1729608338078,6.5344642,169.35,169.26,0.1]
[1729608338079,5.9052,169.34,169.33,0.1]
[1729608339385,0.6295642,169.35,169.25,0.1]
[1729608339386,0.6295642,169.35,169.27,0.1]
[1729608339586,0.6295642,169.35,169.26,16.4687]
[1729608339587,0.6295642,169.35,169.29,0.1]
[1729608340091,6.5344642,169.35,169.34,0.1]
[1729608340876,0.6295642,169.35,169.34,0.1]
[1729608341175,0.6295642,169.35,169.34,0.2]
[1729608341378,0.6295642,169.35,169.34,35.9649]
[1729608341592,0.07535005,169.46,169.45,0.1]
[1729608342592,5.97635005,169.46,169.45,0.1]
[1729608343391,0.07535005,169.46,169.45,0.1]
[1729608343597,5.97635005,169.46,169.45,0.1]
[1729608344788,29.75323405,169.46,169.45,0.1]
[1729608345105,29.75323405,169.46,169.35,22.99636528]
[1729608345106,29.678284,169.45,169.44,0.1]
[1729608346101,29.678584,169.44,169.43,0.1]
[1729608347083,23.776884,169.44,169.4,0.1]
[1729608347293,29.679684,169.41,169.39,0.1]
[1729608347484,23.776884,169.43,169.39,0.1]
[1729608347689,29.679684,169.41,169.4,0.1]
[1729608349600,5.9028,169.41,169.4,0.1]
[1729608350503,5.9035,169.39,169.38,0.1]
[1729608351381,29.680384,169.39,169.38,0.1]
[1729608351576,29.680384,169.39,169.32,0.1]
[1729608351577,5.9021,169.43,169.42,0.1]
[1729608351778,5.9024,169.42,169.41,0.1]
[1729608352088,29.679284,169.42,169.41,0.1]
[1729608352678,5.9024,169.42,169.41,0.1]
[1729608354079,5.9024,169.42,169.39,0.1]
[1729608354283,5.9024,169.42,169.23,70.0]
[1729608354284,0.1,169.46,169.38,0.1]
[1729608354484,29.680684,169.38,169.37,0.1]
[1729608354790,29.680684,169.38,169.36,0.1]
[1729608354791,23.776884,169.38,169.36,0.1]
[1729608354990,23.776884,169.37,169.36,0.1]
[1729608355196,29.681084,169.37,169.36,0.1]
[1729608355695,29.681784,169.35,169.33,0.1]
[1729608355902,29.682484,169.33,169.32,0.1]
[1729608356790,23.776884,169.33,169.29,0.1]
[1729608357080,29.683884,169.29,169.28,0.1]
[1729608357291,29.684184,169.28,169.27,0.1]
[1729608357678,14.8644,169.33,169.26,0.1]
[1729608357679,29.684584,169.27,169.26,0.1]
[1729608357897,29.685584,169.24,169.23,0.1]
[1729608358206,5.9094,169.22,169.21,0.1]
[1729608358403,23.776884,169.23,169.21,0.1]
[1729608358712,44.459884,169.22,169.21,0.1]
[1729608358897,38.550484,169.22,169.2,0.1]
[1729608359090,29.686684,169.21,169.2,0.1]
[1729608359802,29.687384,169.19,169.17,0.1]
[1729608360005,5.9105,169.19,169.18,0.1]
[1729608360194,5.9119,169.15,169.14,0.1]
[1729608360388,5.9119,169.15,169.04,6.5626]
[1729608360389,23.776884,169.15,169.13,0.1]
[1729608360584,23.776884,169.14,169.12,0.1]
[1729608360784,29.690184,169.11,169.1,0.1]
[1729608360998,23.776884,169.1,169.05,0.1]
[1729608361198,29.691584,169.07,169.05,0.1]
[1729608361499,5.9154,169.05,169.03,0.1]
[1729608361708,29.692284,169.05,169.04,0.1]
[1729608363125,29.692284,169.05,169.03,0.1]
[1729608363126,23.776884,169.04,169.03,0.1]
[1729608363287,29.692984,169.03,169.02,0.1]
[1729608363486,29.692984,169.03,168.93,0.7295642]
[1729608363487,5.9175,168.99,168.98,0.1]
[1729608363690,23.776884,168.98,168.97,0.1]
[1729608363882,23.776884,168.96,168.95,0.1]
[1729608364829,5.9177,168.99,168.98,0.1]
[1729608365199,29.694584,168.99,168.98,0.1]
[1729608366311,29.694584,168.99,168.97,0.1]
[1729608366609,23.776884,168.94,168.93,0.7295642]
[1729608366985,5.919,168.95,168.94,0.1]
[1729608367197,5.919,168.95,168.93,0.6295642]
[1729608367198,29.695384,168.96,168.95,0.1]
[1729608368888,23.776884,168.96,168.93,0.7295642]
[1729608369206,29.696084,168.94,168.93,0.7295642]
[1729608370793,14.7931,169.0,168.93,0.7295642]
[1729608370794,20.7102,169.0,168.99,0.1]
[1729608370996,5.9171,169.0,168.99,0.1]
[1729608371205,5.9175,168.99,168.98,0.1]
[1729608371995,29.694384,168.99,168.98,0.1]
[1729608374704,29.694684,168.98,168.97,0.1]
[1729608375094,29.695084,168.97,168.96,0.1]
[1729608375317,29.695384,168.96,168.95,0.1]
[1729608377400,20.0,169.02,169.0,0.1]
[1729608377590,5.9171,169.0,168.99,0.1]
[1729608378627,29.696084,168.94,168.93,0.7295642]
[1729608378996,29.696084,168.94,168.93,0.6295642]
[1729608379696,29.696084,168.94,168.93,0.7295642]
[1729608379894,29.696084,168.94,168.81,22.5765]
[1729608379895,41.526884,168.93,168.81,22.5765]
[1729608380201,37.75,168.92,168.76,17.2229642]
[1729608380404,5.9237,168.82,168.77,0.1]
[1729608380619,5.9231,168.83,168.77,0.2]
[1729608380924,37.85,168.92,168.81,0.1]
[1729608380925,5.9216,168.88,168.81,0.1]
[1729608381119,20.0,168.92,168.79,0.1]
[1729608381293,5.9227,168.85,168.77,0.2]
[1729608381493,5.9233,168.83,168.76,17.2229642]
[1729608381799,5.9227,168.84,168.77,0.2]
[1729608382000,23.776884,168.83,168.77,0.2]
[1729608382293,29.699984,168.83,168.77,0.1]
[1729608382503,23.776884,168.83,168.78,0.1]
[1729608382917,23.776884,168.84,168.78,0.1]
[1729608383215,14.7993,168.93,168.8,0.2]
[1729608383403,1.02684608,168.97,168.82,0.1]
[1729608383617,1.02684608,168.97,168.85,0.1]
[1729608383618,5.9199,168.92,168.85,0.1]
[1729608384006,5.9197,168.93,168.87,0.1]
[1729608384206,8.48397096,168.99,168.83,0.2]
[1729608384402,5.9207,168.9,168.85,0.1]
[1729608384624,5.92,168.92,168.85,0.2]
[1729608385333,23.776884,168.91,168.85,0.2]
[1729608386514,5.92,168.92,168.86,0.1]
[1729608386715,5.92,168.92,168.85,0.1]
[1729608386716,5.92,168.92,168.85,0.2]
[1729608386907,14.7964,168.96,168.84,0.1]
[1729608386908,5.9206,168.91,168.84,0.1]
[1729608387117,5.921,168.89,168.83,0.2]
[1729608387417,14.7981,168.94,168.82,0.2]
[1729608387621,5.9207,168.9,168.84,0.2]
[1729608387834,23.776884,168.89,168.84,0.2]
[1729608388124,23.776884,168.89,168.82,0.1]
[1729608388333,23.776884,168.87,168.82,0.2]
[1729608389014,29.698584,168.87,168.82,0.2]
[1729608389229,29.698584,168.87,168.82,0.1]
[1729608389411,23.776884,168.84,168.79,0.1]
[1729608389607,23.776884,168.84,168.78,0.2]
[1729608389819,23.776884,168.84,168.77,0.2]
[1729608390018,5.9238,168.82,168.77,0.2]
[1729608390214,23.776884,168.8,168.76,0.6295642]
[1729608390424,23.776884,168.8,168.76,0.7295642]
[1729608390615,23.776884,168.8,168.76,0.6295642]
[1729608391030,23.776884,168.81,168.76,0.7295642]
[1729608391229,5.9228,168.84,168.78,0.1]
[1729608391440,29.700084,168.83,168.78,0.1]
[1729608391811,23.776884,168.83,168.78,0.2]
[1729608392031,23.776884,168.84,168.78,0.2]
[1729608392333,23.776884,168.84,168.79,0.1]
[1729608392630,38.47671787,168.96,168.83,0.2]
[1729608392816,38.47671787,168.96,168.85,0.1]
[1729608393015,38.47671787,168.96,168.81,6.2257]
[1729608393016,6.16118284,168.96,168.87,0.1]
[1729608393216,5.9194,168.94,168.87,0.1]
[1729608393615,5.9199,168.92,168.86,0.1]
[1729608393934,5.9208,168.9,168.84,0.1]
[1729608394634,23.776884,168.89,168.84,0.2]
[1729608394818,5.9201,168.92,168.87,0.1]
[1729608395022,5.9189,168.95,168.87,0.2]
[1729608395217,5.9204,168.91,168.85,0.1]
[1729608395421,14.64357584,168.99,168.84,0.2]
[1729608395821,5.9203,168.91,168.84,0.2]
[1729608396211,23.776884,168.9,168.84,0.2]
[1729608397213,29.697784,168.9,168.84,0.1]
[1729608397435,29.697584,168.9,168.84,0.1]
[1729608397635,23.776884,168.9,168.84,0.2]
[1729608397836,23.776884,168.9,168.85,0.1]
[1729608398229,14.7964,168.96,168.86,0.1]
[1729608398533,29.696484,168.93,168.86,0.1]
[1729608398737,5.9203,168.92,168.85,0.2]
[1729608398922,23.776884,168.93,168.85,0.2]
[1729608399511,23.776884,168.93,168.85,0.1]
[1729608399932,23.776884,168.91,168.86,0.1]
[1729608401044,29.697184,168.91,168.85,0.2]
[1729608401432,29.697184,168.91,168.85,0.1]
[1729608401638,23.776884,168.92,168.86,0.2]
[1729608401811,23.776884,168.93,168.87,0.1]
[1729608402316,29.696584,168.93,168.86,0.1]
[1729608402828,29.696584,168.93,168.87,0.1]
[1729608403136,23.776884,168.93,168.87,0.1]
[1729608403728,23.776884,168.93,168.86,0.1]
[1729608403935,5.9199,168.92,168.85,0.2]
[1729608404239,5.9199,168.92,168.85,0.1]
[1729608404433,23.776884,168.91,168.84,0.2]
[1729608404615,23.776884,168.9,168.85,0.1]
[1729608404820,23.776884,168.9,168.84,0.1]
[1729608405025,29.697484,168.9,168.84,0.1]
[1729608405423,5.921,168.89,168.84,0.1]
[1729608405831,5.921,168.89,168.82,20.2]
[1729608406338,5.9225,168.85,168.78,0.1]
[1729608406727,5.9228,168.84,168.77,6.6388]
[1729608406925,5.9225,168.85,168.79,0.1]
[1729608407136,23.776884,168.84,168.78,0.2]
[1729608407341,23.776884,168.84,168.79,0.1]
[1729608407523,23.776884,168.84,168.77,6.6388]
[1729608407846,23.776884,168.84,168.78,0.1]
[1729608408034,23.776884,168.84,168.77,6.6388]
[1729608408541,29.699784,168.84,168.77,6.6388]
[1729608408839,29.699784,168.84,168.77,6.5388]
[1729608409151,29.699784,168.84,168.77,6.6388]
[1729608409344,29.699784,168.84,168.77,6.5388]
[1729608409640,29.699784,168.84,168.78,0.1]
[1729608410525,23.776884,168.84,168.79,0.1]
[1729608411130,23.776884,168.84,168.76,0.6295642]
[1729608411131,5.9203,168.91,168.83,0.1]
[1729608411329,5.9209,168.9,168.83,0.1]
[1729608411522,15.3719,168.92,168.83,0.2]
[1729608411718,5.9211,168.89,168.83,0.2]
[1729608411922,6.0266,168.93,168.85,0.1]
[1729608412145,5.9192,168.95,168.88,0.1]
[1729608412818,5.9189,168.95,168.88,0.1]
[1729608413222,5.9194,168.94,168.86,0.2]
[1729608413424,5.9194,168.94,168.87,0.2]
[1729608413633,5.9196,168.93,168.86,0.1]
[1729608413838,5.9199,168.92,168.86,0.1]
[1729608414133,5.9199,168.92,168.85,0.2]
[1729608414332,23.776884,168.95,168.86,0.1]
[1729608414547,23.776884,168.93,168.86,0.1]
[1729608414752,29.696584,168.93,168.86,0.1]
[1729608415073,23.776884,168.91,168.86,0.1]
[1729608415558,23.776884,168.91,168.85,0.2]
[1729608415732,23.776884,168.91,168.86,0.1]
[1729608415935,15.3168,168.96,168.86,0.1]
[1729608415936,23.776884,168.92,168.86,0.1]
[1729608416351,23.776884,168.92,168.88,0.1]
[1729608416538,23.776884,168.93,168.86,0.2]
[1729608416735,23.776884,168.93,168.88,0.1]
[1729608417639,23.776884,168.93,168.86,0.1]
[1729608418137,23.776884,168.93,168.85,0.1]
[1729608418341,23.776884,168.91,168.85,0.1]
[1729608418558,23.776884,168.91,168.86,0.1]
[1729608418749,23.776884,168.92,168.86,0.1]
[1729608419665,23.776884,168.93,168.86,0.2]
[1729608419966,23.776884,168.93,168.86,0.1]
[1729608420150,23.776884,168.93,168.86,0.2]
[1729608420337,23.776884,168.93,168.87,0.1]
[1729608420535,5.9187,168.96,168.89,0.1]
[1729608420733,22.25493478,169.01,168.9,0.1]
[1729608420941,22.25493478,169.01,168.89,0.1]
[1729608421168,5.9186,168.96,168.89,0.1]
[1729608421539,5.9186,168.96,168.89,0.2]
[1729608422149,5.9186,168.96,168.9,0.1]
[1729608422352,22.25493478,169.01,168.93,0.1]
[1729608422569,5.9172,169.0,168.93,0.2]
[1729608422860,22.25493478,169.01,168.9,20.1]
[1729608422861,16.1051,169.01,168.9,20.1]
[1729608423046,5.9179,168.98,168.91,0.1]
[1729608423361,30.8976,169.01,168.93,0.1]
[1729608423362,16.1051,169.01,168.93,0.1]
[1729608423657,5.9173,169.0,168.92,0.1]
[1729608423858,5.9173,169.0,168.92,0.2]
[1729608424044,5.9173,169.0,168.93,0.1]
[1729608424250,5.9173,169.0,168.87,90.0]
[1729608424251,16.1051,169.01,168.9,0.2]
[1729608424450,5.9177,168.99,168.9,0.2]
[1729608424655,5.9177,168.99,168.91,0.1]
[1729608424870,5.9177,168.99,168.93,0.1]
[1729608425050,29.694084,169.0,168.93,0.1]
[1729608425448,5.9163,169.03,168.95,0.1]
[1729608425642,5.9158,169.04,168.96,0.1]
[1729608425964,5.9168,169.01,168.93,20.2]
[1729608426138,58.62972141,169.09,168.92,22.3177]
[1729608426139,5.9178,168.99,168.92,22.3177]
[1729608426335,5.9171,169.01,168.93,0.2]
[1729608426765,23.776884,169.0,168.93,0.2]
[1729608427060,5.9162,169.03,168.95,0.1]
[1729608427274,5.9164,169.03,168.96,0.1]
[1729608427847,5.9156,169.05,168.97,0.1]
[1729608428350,23.776884,169.08,168.97,0.1]
[1729608428546,5.9158,169.04,168.97,0.1]
[1729608428849,23.776884,169.06,168.98,0.1]
[1729608429169,22.8003,169.09,168.94,0.2]
[1729608429464,5.9166,169.02,168.94,0.2]
[1729608429766,5.9166,169.02,168.96,0.1]
[1729608429945,5.9166,169.02,168.95,0.2]
[1729608430143,5.9168,169.01,168.94,0.2]
[1729608430349,5.9169,169.01,168.94,0.1]
[1729608430560,16.2436,169.09,168.98,0.1]
[1729608430862,6.15515705,169.11,169.03,0.1]
[1729608430863,5.9133,169.11,169.03,0.1]
[1729608431468,6.387,169.13,169.03,0.1]
[1729608431469,5.9129,169.12,169.04,0.1]
[1729608431640,16.5536,169.24,169.15,0.1]
[1729608431843,0.1,169.32,169.15,0.1]
[1729608431844,4.40179816,169.23,169.2,0.1]
[1729608432059,5.9086,169.25,169.16,26.8790595]
[1729608432268,16.5536,169.3,169.15,20.2]
[1729608432559,16.5536,169.3,169.15,20.1]
[1729608432763,0.1,169.28,169.1,27.0790595]
[1729608432949,5.9107,169.19,169.11,0.1]
[1729608433152,16.5536,169.3,169.11,0.2]
[1729608433153,0.2,169.29,169.11,0.2]
[1729608433343,0.2,169.28,169.1,20.1]
[1729608433667,16.5536,169.3,169.07,0.2]
[1729608433668,29.5455,169.23,169.07,0.2]
[1729608433851,29.5455,169.23,169.09,0.1]
[1729608434162,5.9098,169.21,169.12,0.1]
[1729608434349,5.9102,169.2,169.12,0.2]
[1729608434944,6.1584,169.24,169.11,20.2]
[1729608435160,5.9098,169.21,169.12,0.1]
[1729608435367,23.776884,169.23,169.11,20.2]
[1729608435552,12.0674,169.24,169.12,0.1]
[1729608435757,5.9093,169.23,169.13,0.2]
[1729608436060,6.1584,169.24,169.13,0.1]
[1729608436269,5.9091,169.23,169.11,20.0]
[1729608436465,5.9108,169.18,169.1,0.1]
[1729608436667,23.9084,169.24,169.07,0.1]
[1729608436856,5.9119,169.15,169.06,0.1]
[1729608437062,24.1084,169.24,169.05,0.2]
[1729608437063,23.776884,169.13,169.05,0.2]
[1729608437252,23.776884,169.18,169.08,0.1]
[1729608437456,5.9108,169.18,169.09,0.1]
[1729608437657,23.776884,169.17,169.07,27.0790595]
[1729608437852,23.776884,169.16,169.08,0.1]
[1729608438073,23.776884,169.16,169.09,0.1]
[1729608438375,23.776884,169.16,169.06,0.1]
[1729608438671,23.776884,169.14,169.06,0.2]
[1729608438871,6.0079,169.28,169.13,0.1]
[1729608439057,6.0079,169.28,169.13,26.9790595]
[1729608439255,5.9097,169.22,169.13,26.9790595]
[1729608439653,5.9099,169.21,169.11,20.0]
[1729608439867,5.9103,169.2,169.11,20.0]
[1729608440067,23.776884,169.19,169.11,20.0]
[1729608440284,23.776884,169.17,169.07,26.8790595]
[1729608440574,23.776884,169.13,169.04,33.0733595]
[1729608441167,23.776884,169.13,169.04,6.0943]
[1729608441369,23.776884,169.11,169.02,16.0772]
[1729608441554,23.776884,169.09,169.01,0.2]
[1729608441878,5.9132,169.12,169.02,0.2]
[1729608442077,23.776884,169.11,169.02,0.2]
[1729608442254,23.776884,169.11,169.01,0.2]
[1729608442580,29.690184,169.11,169.02,0.1]
[1729608443261,29.690184,169.11,169.02,0.2]
[1729608443674,29.690184,169.11,169.01,20.2]
[1729608444065,23.776884,169.11,169.01,20.1]
[1729608444283,14.7792,169.16,169.01,20.1]
[1729608444284,23.776884,169.09,169.01,20.1]
[1729608444885,23.776884,169.09,168.97,15.8718]
[1729608445180,23.776884,169.09,168.96,33.1320595]
[1729608445181,23.776884,169.09,168.96,6.153]
[1729608445387,5.9168,169.01,168.92,15.3465]
[1729608445875,5.9158,169.04,168.94,0.1]
[1729608446080,23.776884,169.03,168.94,0.1]
[1729608446267,23.776884,169.03,168.93,0.1]
[1729608446469,23.776884,169.03,168.93,0.2]
[1729608446668,23.776884,169.03,168.94,0.1]
[1729608446857,5.9147,169.07,168.94,0.1]
[1729608447059,23.776884,169.05,168.95,0.2]
[1729608447263,23.776884,169.05,168.95,0.1]
[1729608447464,29.692284,169.05,168.95,0.1]
[1729608447678,29.692284,169.05,168.95,0.2]
[1729608448796,23.776884,169.05,168.95,0.1]
[1729608448969,23.776884,169.05,168.94,20.0]
[1729608449167,23.776884,169.05,168.93,20.1]
[1729608449363,5.9169,169.01,168.92,15.3465]
[1729608449583,5.9169,169.01,168.92,15.4465]
[1729608449762,14.7893,169.04,168.92,15.3465]
[1729608449976,5.9178,168.99,168.91,6.153]
[1729608450468,29.694684,168.98,168.91,6.153]
[1729608450665,23.776884,168.96,168.88,0.1]
[1729608450968,23.776884,168.96,168.87,22.9254]
[1729608450969,5.9189,168.95,168.87,23.0254]
[1729608451178,23.776884,168.96,168.87,23.1254]
[1729608451377,5.9177,168.99,168.89,0.1]
[1729608451689,23.776884,168.98,168.89,0.1]
[1729608452178,29.698884,168.86,168.85,6.15643073]
[1729608452378,0.1,168.92,168.76,0.6295642]
[1729608452379,5.9238,168.81,168.76,0.6295642]
[1729608453180,23.776884,168.8,168.76,0.6295642]
[1729608454293,23.776884,168.81,168.76,0.6295642]
[1729608454988,23.776884,168.84,168.76,0.6295642]
[1729608455171,29.699584,168.84,168.76,0.6295642]
[1729608455376,23.776884,168.84,168.76,0.6295642]